[Event "FIDE Women World-chT-KO 2021"]
[Site "Sitges"]
[Date "2021.09.30"]
[Round "1.1"]
[White "Ushenina, Anna"]
[Black "Sargsyan, Anna M."]
[Result "0-1"]
[ECO "D11"]
[WhiteElo "2428"]
[BlackElo "2402"]
[Annotator "ChessBase"]
[PlyCount "129"]
[EventDate "2021.09.30"]
[EventType "team-tourn"]
[EventCountry "ESP"]
[SourceTitle "playchess.com"]
[Source "ChessBase"]
[SourceQuality "1"]
[WhiteTeam "Ukraine"]
[BlackTeam "Armenia"]
[WhiteTeamCountry "UKR"]
[BlackTeamCountry "ARM"]
[TimeControl "2700+10"]

1. d4 {[%emt 0:00:05]} d5 {[%emt 0:00:02]} 2. c4 {[%emt 0:00:11]} c6 {[%emt 0:
00:03]} 3. Nf3 {[%emt 0:00:06]} Nf6 {[%emt 0:00:02]} 4. Qb3 {[%emt 0:00:17]}
dxc4 {[%emt 0:00:05]} 5. Qxc4 {[%emt 0:00:02]} Bf5 {[%emt 0:00:03]} 6. g3 {
[%emt 0:00:07]} e6 {[%emt 0:00:02]} 7. Bg2 {[%emt 0:00:01]} Be7 {[%emt 0:00:02]
} 8. O-O {[%emt 0:00:11]} O-O {[%emt 0:00:09]} 9. e3 {[%emt 0:00:16]} Nbd7 {
[%emt 0:00:08]} 10. Rd1 {[%emt 0:00:10]} Ne4 {[%emt 0:00:44]} 11. Qe2 Qc7 12.
Nc3 {[%emt 0:09:31]} Nxc3 {[%emt 0:01:12]} 13. bxc3 {[%emt 0:00:01]} e5 {
[%emt 0:00:05]} 14. e4 {[%emt 0:06:06]} Be6 {[%emt 0:00:17]} 15. Ng5 Bxg5 {
[%emt 0:04:14]} 16. Bxg5 {[%emt 0:00:11]} h6 {[%emt 0:00:13]} 17. Be3 {[%emt 0:
01:05]} Nf6 {[%emt 0:02:31]} 18. h3 {[%emt 0:04:07]} Rad8 {[%emt 0:01:15]} 19.
a4 {[%emt 0:03:46]} Rfe8 {[%emt 0:02:52]} 20. a5 {[%emt 0:02:43]} b5 {[%emt 0:
02:45]} 21. axb6 {[%emt 0:00:17]} axb6 {[%emt 0:00:03]} 22. dxe5 {[%emt 0:04:
12]} Rxd1+ {[%emt 0:01:20]} 23. Rxd1 {[%emt 0:02:37]} Qxe5 {[%emt 0:00:03]} 24.
Bxb6 {[%emt 0:00:41]} Qxc3 {[%emt 0:00:11]} 25. Bd4 {[%emt 0:01:18]} Qa5 {
[%emt 0:02:00]} 26. Rc1 {[%emt 0:01:46]} Qb5 {[%emt 0:02:10]} 27. Qb2 {[%emt 0:
00:45]} Qxb2 {[%emt 0:09:07]} 28. Bxb2 {[%emt 0:00:01]} Rc8 {[%emt 0:02:15]}
29. f4 {[%emt 0:04:24]} c5 {[%emt 0:00:36]} 30. Kf2 {[%emt 0:00:04]} Nd7 {
[%emt 0:00:58]} 31. Bf1 {[%emt 0:01:37]} Ra8 {[%emt 0:01:17]} 32. Ra1 {[%emt 0:
00:54]} Rb8 {[%emt 0:00:03]} 33. Bc3 {[%emt 0:00:34]} Rb3 {[%emt 0:00:42]} 34.
Rc1 {[%emt 0:00:24]} Nb6 {[%emt 0:00:54]} 35. Bd2 {[%emt 0:00:56]} Rb2 {
[%emt 0:00:57]} 36. Ke3 {[%emt 0:00:10]} Rb3+ {[%emt 0:00:31]} 37. Kf2 {
[%emt 0:01:19]} Rb2 {[%emt 0:00:01]} 38. Ke3 {[%emt 0:00:16]} Rb3+ {[%emt 0:00:
05]} 39. Kf2 {[%emt 0:00:05]} Rb2 {[%emt 0:00:11]} 40. Ke1 {[%emt 0:00:03]} Na4
{[%emt 0:00:02]} 41. f5 {[%emt 0:00:12]} Ba2 {[%emt 0:00:24]} 42. Bd3 {[%emt 0:
00:24]} Bb3 {[%emt 0:01:26]} 43. g4 {[%emt 0:00:08]} Kf8 {[%emt 0:00:14]} 44.
h4 {[%emt 0:00:02]} Ke7 {[%emt 0:00:44]} 45. g5 {[%emt 0:00:06]} hxg5 {[%emt 0:
00:02]} 46. hxg5 {[%emt 0:00:01]} Kd6 {[%emt 0:00:12]} 47. Ke2 {[%emt 0:00:24]}
Nb6 {[%emt 0:00:29]} 48. Ke3 {[%emt 0:00:17]} c4 {[%emt 0:00:08]} 49. Be2 {
[%emt 0:00:11]} Ra2 {[%emt 0:00:19]} 50. Bc3 {[%emt 0:00:14]} g6 {[%emt 0:00:
05]} 51. Rf1 {[%emt 0:00:10]} Nd7 {[%emt 0:00:02]} 52. fxg6 {[%emt 0:00:11]}
fxg6 {[%emt 0:00:01]} 53. Rf7 {[%emt 0:00:05]} Rc2 {[%emt 0:00:16]} 54. Bb4+ {
[%emt 0:00:01]} Kc6 {[%emt 0:00:10]} 55. Bg4 {[%emt 0:00:07]} Ne5 {[%emt 0:00:
02]} 56. Rf6+ {[%emt 0:00:25]} Kb5 {[%emt 0:00:01]} 57. Bd1 Rc1 {[%emt 0:01:57]
} 58. Bd6 {[%emt 0:00:13]} Nd7 {[%emt 0:00:22]} 59. Be2 Rc3+ {[%emt 0:02:23]}
60. Kf2 {[%emt 0:00:23]} Bc2 {[%emt 0:00:01]} 61. Rxg6 {[%emt 0:00:08]} Bxe4 {
[%emt 0:00:01]} 62. Rg7 {[%emt 0:00:06]} Nc5 {[%emt 0:00:03]} 63. Re7 {[%emt 0:
00:09]} Nd3+ {[%emt 0:00:30]} 64. Bxd3 {[%emt 0:00:20]} Bxd3 {[%emt 0:00:17]}
65. Be5 {[%emt 0:00:24]} 0-1

[Event "FIDE Women World-chT-KO 2021"]
[Site "Sitges"]
[Date "2021.09.30"]
[Round "1.1"]
[White "Mammadova, Gulnar"]
[Black "Batsiashvili, Nino"]
[Result "1/2-1/2"]
[ECO "C28"]
[WhiteElo "2395"]
[BlackElo "2486"]
[Annotator "ChessBase"]
[PlyCount "68"]
[EventDate "2021.09.30"]
[EventType "team-tourn"]
[EventCountry "ESP"]
[SourceTitle "playchess.com"]
[Source "ChessBase"]
[SourceQuality "1"]
[WhiteTeam "Azerbaijan"]
[BlackTeam "Georgia"]
[WhiteTeamCountry "AZE"]
[BlackTeamCountry "GEO"]
[TimeControl "2700+10"]

1. e4 {[%emt 0:00:10]} e5 {[%emt 0:00:05]} 2. Nc3 {[%emt 0:00:11]} Nf6 {
[%emt 0:00:21]} 3. Bc4 {[%emt 0:00:11]} Nc6 {[%emt 0:00:40]} 4. d3 {[%emt 0:00:
11]} Na5 {[%emt 0:00:15]} 5. Nge2 {[%emt 0:07:10]} Nxc4 {[%emt 0:01:12]} 6.
dxc4 {[%emt 0:00:02]} Bc5 {[%emt 0:00:08]} 7. Ng3 {[%emt 0:05:02]} d6 {[%emt 0:
00:06]} 8. h3 {[%emt 0:00:06]} Be6 {[%emt 0:00:34]} 9. Qd3 {[%emt 0:00:24]} h6
{[%emt 0:03:57]} 10. f4 exf4 {[%emt 0:01:25]} 11. Bxf4 {[%emt 0:03:09]} Nh5 {
[%emt 0:05:02]} 12. Nxh5 {[%emt 0:09:30]} Qh4+ {[%emt 0:00:01]} 13. Bg3 {
[%emt 0:00:37]} Qxh5 {[%emt 0:00:03]} 14. Ne2 {[%emt 0:00:22]} Qg5 {[%emt 0:02:
28]} 15. Bf4 {[%emt 0:03:18]} Qxg2 {[%emt 0:02:01]} 16. O-O-O {[%emt 0:00:07]}
Qg6 {[%emt 0:00:05]} 17. Bd2 {[%emt 0:00:37]} O-O-O {[%emt 0:01:19]} 18. Rhf1 {
[%emt 0:00:50]} f6 {[%emt 0:00:13]} 19. Nf4 {[%emt 0:03:36]} Qf7 {[%emt 0:00:
05]} 20. b3 {[%emt 0:00:04]} Rhe8 {[%emt 0:01:02]} 21. Kb2 {[%emt 0:01:22]} Bd7
{[%emt 0:01:54]} 22. Bc3 {[%emt 0:01:59]} Bc6 {[%emt 0:00:09]} 23. Rde1 {
[%emt 0:00:16]} Re7 {[%emt 0:00:34]} 24. a4 {[%emt 0:00:40]} Rde8 25. Nd5 {
[%emt 0:02:18]} Bxd5 {[%emt 0:01:49]} 26. cxd5 {[%emt 0:00:02]} a6 {[%emt 0:01:
59]} 27. b4 {[%emt 0:00:08]} Ba7 {[%emt 0:00:02]} 28. Rf4 {[%emt 0:00:56]} Qg6
{[%emt 0:01:44]} 29. b5 {[%emt 0:01:06]} axb5 {[%emt 0:01:26]} 30. axb5 {
[%emt 0:00:01]} Bb6 {[%emt 0:00:36]} 31. Rg4 {[%emt 0:00:47]} Qh7 {[%emt 0:00:
59]} 32. Rf4 {[%emt 0:00:11]} Qg6 {[%emt 0:01:38]} 33. Rg4 {[%emt 0:00:02]} Qh7
{[%emt 0:00:58]} 34. Rf4 {[%emt 0:00:02]} Qg6 {[%emt 0:02:09]} 1/2-1/2

[Event "FIDE Women World-chT-KO 2021"]
[Site "Sitges"]
[Date "2021.09.30"]
[Round "1.1"]
[White "Kulkarni Bhakti"]
[Black "Kamalidenova, Meruert"]
[Result "0-1"]
[ECO "E70"]
[WhiteElo "2388"]
[BlackElo "2339"]
[Annotator "ChessBase"]
[PlyCount "104"]
[EventDate "2021.09.30"]
[EventType "team-tourn"]
[EventCountry "ESP"]
[SourceTitle "playchess.com"]
[Source "ChessBase"]
[SourceQuality "1"]
[WhiteTeam "India"]
[BlackTeam "Kazakhstan"]
[WhiteTeamCountry "IND"]
[BlackTeamCountry "KAZ"]
[TimeControl "2700+10"]

1. d4 {[%emt 0:00:06]} Nf6 {[%emt 0:00:02]} 2. c4 {[%emt 0:00:12]} g6 {[%emt 0:
00:04]} 3. Nc3 {[%emt 0:00:11]} Bg7 {[%emt 0:00:02]} 4. e4 {[%emt 0:00:04]} d6
{[%emt 0:00:02]} 5. Bd3 {[%emt 0:00:07]} O-O {[%emt 0:00:13]} 6. Nge2 {[%emt 0:
00:04]} Nc6 {[%emt 0:00:23]} 7. O-O {[%emt 0:00:13]} e5 {[%emt 0:00:07]} 8. d5
{[%emt 0:00:05]} Nd4 {[%emt 0:00:04]} 9. Nxd4 {[%emt 0:00:07]} exd4 {[%emt 0:
00:03]} 10. Ne2 {[%emt 0:00:06]} Nd7 {[%emt 0:01:25]} 11. Rb1 {[%emt 0:03:34]}
c5 {[%emt 0:01:33]} 12. b4 {[%emt 0:01:59]} b6 {[%emt 0:02:36]} 13. f4 {
[%emt 0:01:24]} Qe7 {[%emt 0:03:05]} 14. Ng3 {[%emt 0:01:35]} h5 {[%emt 0:01:
39]} 15. e5 {[%emt 0:02:46]} dxe5 {[%emt 0:02:53]} 16. f5 {[%emt 0:00:05]} Qe8
{[%emt 0:06:36]} 17. Ne4 {[%emt 0:04:37]} Nf6 {[%emt 0:00:57]} 18. bxc5 {
[%emt 0:00:50]} bxc5 {[%emt 0:02:08]} 19. Ba3 {[%emt 0:02:39]} Ng4 {[%emt 0:02:
12]} 20. f6 {[%emt 0:07:58]} Bh6 {[%emt 0:01:14]} 21. Bxc5 {[%emt 0:00:42]} Ne3
{[%emt 0:01:47]} 22. Qc1 {[%emt 0:05:37]} Qa4 {[%emt 0:03:14]} 23. a3 {[%emt 0:
06:30]} Ba6 {[%emt 0:03:50]} 24. Bb4 {[%emt 0:01:48]} Rfc8 {[%emt 0:01:30]} 25.
Nd6 {[%emt 0:02:53]} Qd7 {[%emt 0:04:17]} 26. Rf3 {[%emt 0:01:07]} Rd8 {
[%emt 0:04:08]} 27. Qe1 {[%emt 0:00:27]} Rab8 {[%emt 0:00:18]} 28. Qg3 {
[%emt 0:00:28]} Qg4 {[%emt 0:00:22]} 29. h3 {[%emt 0:01:05]} Qxg3 {[%emt 0:00:
15]} 30. Rxg3 {[%emt 0:00:02]} h4 {[%emt 0:00:56]} 31. Rf3 {[%emt 0:00:18]} Bf8
{[%emt 0:00:06]} 32. Rxe3 {[%emt 0:00:14]} dxe3 {[%emt 0:00:06]} 33. Ne4 {
[%emt 0:00:03]} Bxb4 {[%emt 0:00:04]} 34. Rxb4 {[%emt 0:00:22]} Rbc8 {[%emt 0:
01:01]} 35. d6 {[%emt 0:00:15]} Rd7 {[%emt 0:00:18]} 36. Ra4 {[%emt 0:00:19]}
Bb7 {[%emt 0:01:00]} 37. Rxa7 {[%emt 0:00:09]} Bxe4 {[%emt 0:00:10]} 38. Rxd7 {
[%emt 0:00:03]} Bxd3 {[%emt 0:00:01]} 39. Rc7 {[%emt 0:00:23]} Rxc7 {[%emt 0:
00:32]} 40. dxc7 {[%emt 0:00:01]} Bf5 {[%emt 0:00:02]} 41. Kf1 {[%emt 0:00:08]}
g5 {[%emt 0:00:04]} 42. Ke2 {[%emt 0:00:02]} Kh7 {[%emt 0:00:01]} 43. Kxe3 {
[%emt 0:00:05]} Kg6 {[%emt 0:00:00]} 44. a4 {[%emt 0:00:10]} Kxf6 {[%emt 0:00:
02]} 45. a5 {[%emt 0:00:04]} Bc8 {[%emt 0:00:01]} 46. Ke4 {[%emt 0:00:16]} Ke6
{[%emt 0:00:04]} 47. c5 {[%emt 0:00:05]} f5+ {[%emt 0:00:02]} 48. Kd3 {[%emt 0:
00:03]} Kd5 {[%emt 0:00:04]} 49. Ke3 {[%emt 0:00:11]} Kxc5 {[%emt 0:00:02]} 50.
Kd3 {[%emt 0:00:09]} Bb7 {[%emt 0:00:03]} 51. Ke3 {[%emt 0:00:02]} f4+ {
[%emt 0:00:01]} 52. Kf2 {[%emt 0:00:04]} Kd4 {[%emt 0:00:02]} 0-1

[Event "FIDE Women World-chT-KO 2021"]
[Site "Sitges"]
[Date "2021.09.30"]
[Round "1.1"]
[White "Mkrtchian, Lilit"]
[Black "Muzychuk, Mariya"]
[Result "1/2-1/2"]
[ECO "D10"]
[WhiteElo "2378"]
[BlackElo "2540"]
[Annotator "ChessBase"]
[PlyCount "130"]
[EventDate "2021.09.30"]
[EventType "team-tourn"]
[EventCountry "ESP"]
[SourceTitle "playchess.com"]
[Source "ChessBase"]
[SourceQuality "1"]
[WhiteTeam "Armenia"]
[BlackTeam "Ukraine"]
[WhiteTeamCountry "ARM"]
[BlackTeamCountry "UKR"]
[TimeControl "2700+10"]

1. c4 {[%emt 0:00:07]} c6 {[%emt 0:00:03]} 2. d4 {[%emt 0:00:42]} d5 {[%emt 0:
00:02]} 3. cxd5 {[%emt 0:00:30]} cxd5 {[%emt 0:00:02]} 4. Bf4 {[%emt 0:00:12]}
Nc6 {[%emt 0:00:43]} 5. e3 {[%emt 0:00:05]} Nf6 {[%emt 0:00:43]} 6. Bb5 {
[%emt 0:00:08]} Bf5 {[%emt 0:03:05]} 7. Nf3 {[%emt 0:06:16]} Qb6 {[%emt 0:03:
07]} 8. Nc3 {[%emt 0:00:24]} e6 {[%emt 0:00:46]} 9. O-O {[%emt 0:11:50]} Ne4 {
[%emt 0:09:13]} 10. Qa4 {[%emt 0:10:51]} Nxc3 {[%emt 0:06:32]} 11. bxc3 {
[%emt 0:00:09]} f6 {[%emt 0:06:43]} 12. Nh4 {[%emt 0:07:05]} g5 {[%emt 0:00:15]
} 13. Nxf5 {[%emt 0:00:34]} gxf4 {[%emt 0:00:02]} 14. Nh4 {[%emt 0:00:55]} fxe3
{[%emt 0:02:24]} 15. fxe3 {[%emt 0:00:15]} Be7 {[%emt 0:00:22]} 16. e4 {
[%emt 0:06:01]} dxe4 {[%emt 0:02:26]} 17. Bc4 {[%emt 0:00:06]} O-O-O {[%emt 0:
03:12]} 18. Bxe6+ Kb8 19. Rab1 {[%emt 0:00:29]} Qc7 {[%emt 0:00:02]} 20. Nf5 {
[%emt 0:00:13]} Bd6 {[%emt 0:02:31]} 21. h3 {[%emt 0:00:30]} Ne7 {[%emt 0:00:
15]} 22. Qb3 {[%emt 0:01:03]} Rhe8 {[%emt 0:01:30]} 23. a4 {[%emt 0:00:06]} Nc6
{[%emt 0:00:31]} 24. Qa2 {[%emt 0:00:24]} Na5 {[%emt 0:00:25]} 25. Bf7 {
[%emt 0:00:12]} Rf8 {[%emt 0:00:12]} 26. Bd5 {[%emt 0:00:01]} Rfe8 {[%emt 0:00:
47]} 27. Bf7 {[%emt 0:00:04]} Rf8 28. Bd5 Rfe8 {[%emt 0:00:20]} 29. c4 {
[%emt 0:00:12]} e3 {[%emt 0:00:28]} 30. Rfe1 {[%emt 0:00:08]} Bf4 {[%emt 0:00:
40]} 31. Rb5 {[%emt 0:00:22]} a6 {[%emt 0:00:10]} 32. Rc5 {[%emt 0:00:12]} Qb6
{[%emt 0:00:09]} 33. Re2 {[%emt 0:00:22]} Nb3 {[%emt 0:00:21]} 34. Qb2 Ka7 35.
a5 {[%emt 0:00:12]} Qb4 {[%emt 0:00:32]} 36. g3 {[%emt 0:00:01]} Qa4 {[%emt 0:
00:17]} 37. gxf4 {[%emt 0:00:07]} Nxc5 {[%emt 0:00:09]} 38. dxc5 {[%emt 0:00:
23]} Rxd5 {[%emt 0:00:41]} 39. cxd5 {[%emt 0:00:04]} Rg8+ {[%emt 0:00:20]} 40.
Rg2 {[%emt 0:00:18]} Qd1+ {[%emt 0:00:13]} 41. Kh2 {[%emt 0:00:01]} Rxg2+ {
[%emt 0:00:04]} 42. Kxg2 {[%emt 0:00:12]} Qxd5+ {[%emt 0:00:13]} 43. Kg3 {
[%emt 0:00:07]} Qxf5 {[%emt 0:00:05]} 44. Qb6+ {[%emt 0:00:02]} Kb8 {[%emt 0:
00:45]} 45. Qd8+ {[%emt 0:00:24]} Qc8 {[%emt 0:00:11]} 46. Qxc8+ {[%emt 0:00:
16]} Kxc8 {[%emt 0:00:02]} 47. Kf3 {[%emt 0:00:00]} Kc7 {[%emt 0:00:13]} 48.
Kxe3 {[%emt 0:00:01]} Kc6 {[%emt 0:00:09]} 49. Ke4 {[%emt 0:00:01]} Kxc5 {
[%emt 0:00:11]} 50. Kf5 {[%emt 0:00:01]} b5 {[%emt 0:00:21]} 51. axb6 {[%emt 0:
00:09]} Kxb6 {[%emt 0:00:01]} 52. Kxf6 {[%emt 0:00:01]} a5 {[%emt 0:00:02]} 53.
f5 {[%emt 0:00:01]} a4 {[%emt 0:00:03]} 54. Ke7 {[%emt 0:00:06]} a3 {[%emt 0:
00:05]} 55. f6 {[%emt 0:00:01]} a2 {[%emt 0:00:07]} 56. f7 {[%emt 0:00:01]}
a1=Q {[%emt 0:00:03]} 57. f8=Q {[%emt 0:00:02]} Qa3+ {[%emt 0:00:20]} 58. Kf7 {
[%emt 0:00:01]} Qxh3 {[%emt 0:00:10]} 59. Qd6+ {[%emt 0:00:05]} Kb5 {[%emt 0:
00:03]} 60. Qd5+ {[%emt 0:00:22]} Kb4 {[%emt 0:00:02]} 61. Kf6 {[%emt 0:00:43]}
Kc3 {[%emt 0:00:36]} 62. Kg5 {[%emt 0:00:58]} Qg3+ {[%emt 0:00:23]} 63. Kh5 {
[%emt 0:00:04]} Qg6+ {[%emt 0:00:35]} 64. Kh4 {[%emt 0:00:01]} Qf6+ {[%emt 0:
00:07]} 65. Kg4 {[%emt 0:00:13]} Qd4+ {[%emt 0:00:27]} 1/2-1/2

[Event "FIDE Women World-chT-KO 2021"]
[Site "Sitges"]
[Date "2021.09.30"]
[Round "1.1"]
[White "Lujan, Carolina"]
[Black "Kosteniuk, Alexandra"]
[Result "0-1"]
[ECO "C50"]
[WhiteElo "2340"]
[BlackElo "2526"]
[Annotator "ChessBase"]
[PlyCount "82"]
[EventDate "2021.09.30"]
[EventType "team-tourn"]
[EventCountry "ESP"]
[SourceTitle "playchess.com"]
[Source "ChessBase"]
[SourceQuality "1"]
[WhiteTeam "Argentina"]
[BlackTeam "Russia"]
[WhiteTeamCountry "ARG"]
[BlackTeamCountry "RUS"]
[TimeControl "2700+10"]

1. e4 {[%emt 0:00:06]} e5 {[%emt 0:00:03]} 2. Nf3 {[%emt 0:00:05]} Nc6 {
[%emt 0:00:03]} 3. Bc4 {[%emt 0:00:06]} Bc5 {[%emt 0:00:04]} 4. d3 {[%emt 0:00:
18]} Nf6 {[%emt 0:00:04]} 5. O-O {[%emt 0:00:08]} d6 {[%emt 0:00:11]} 6. c3 {
[%emt 0:00:05]} a5 {[%emt 0:00:06]} 7. Nbd2 {[%emt 0:01:16]} O-O {[%emt 0:00:
28]} 8. Re1 {[%emt 0:01:01]} Be6 {[%emt 0:00:10]} 9. Bb5 {[%emt 0:01:40]} Qb8 {
[%emt 0:00:10]} 10. Nf1 {[%emt 0:04:48]} Qa7 {[%emt 0:00:03]} 11. Be3 {[%emt 0:
00:45]} Bxe3 {[%emt 0:00:10]} 12. Nxe3 {[%emt 0:00:16]} h6 {[%emt 0:00:06]} 13.
h3 {[%emt 0:00:54]} Ne7 {[%emt 0:00:32]} 14. Ba4 {[%emt 0:02:45]} Qb6 {[%emt 0:
00:20]} 15. Qd2 {[%emt 0:02:18]} Ng6 {[%emt 0:00:20]} 16. Bc2 a4 {[%emt 0:03:
05]} 17. b3 {[%emt 0:05:59]} axb3 {[%emt 0:01:43]} 18. axb3 {[%emt 0:00:03]}
Rxa1 {[%emt 0:00:25]} 19. Rxa1 {[%emt 0:00:02]} d5 {[%emt 0:00:25]} 20. exd5 {
[%emt 0:01:31]} Nxd5 {[%emt 0:00:03]} 21. Nc4 {[%emt 0:00:21]} Qc6 {[%emt 0:00:
11]} 22. d4 {[%emt 0:03:35]} Ndf4 {[%emt 0:00:59]} 23. Na5 {[%emt 0:07:20]}
Qxc3 {[%emt 0:01:48]} 24. Qxc3 {[%emt 0:00:56]} Ne2+ {[%emt 0:00:02]} 25. Kh2 {
[%emt 0:01:04]} Nxc3 {[%emt 0:00:03]} 26. dxe5 {[%emt 0:02:40]} Ra8 {[%emt 0:
02:11]} 27. Bxg6 {[%emt 0:02:27]} fxg6 {[%emt 0:00:01]} 28. Nd4 {[%emt 0:00:18]
} Bd5 {[%emt 0:01:16]} 29. Rc1 {[%emt 0:01:26]} c5 {[%emt 0:00:23]} 30. Rxc3 {
[%emt 0:01:43]} cxd4 {[%emt 0:00:02]} 31. Rc5 {[%emt 0:00:02]} Rd8 {[%emt 0:00:
05]} 32. Rc1 {[%emt 0:00:41]} Kf7 {[%emt 0:06:03]} 33. Rd1 {[%emt 0:00:24]} b6
{[%emt 0:01:00]} 34. Nc4 {[%emt 0:00:02]} Bxc4 {[%emt 0:00:12]} 35. bxc4 {
[%emt 0:00:00]} Ke6 {[%emt 0:00:29]} 36. f4 {[%emt 0:00:44]} Kf5 {[%emt 0:03:
06]} 37. Re1 {[%emt 0:01:32]} Kxf4 {[%emt 0:01:48]} 38. e6 {[%emt 0:00:03]} d3
{[%emt 0:00:01]} 39. e7 {[%emt 0:00:08]} Re8 {[%emt 0:00:07]} 40. Kg1 {[%emt 0:
01:33]} d2 {[%emt 0:00:06]} 41. Rf1+ {[%emt 0:00:41]} Ke5 0-1

[Event "FIDE Women World-chT-KO 2021"]
[Site "Sitges"]
[Date "2021.09.30"]
[Round "1.1"]
[White "Mamedjarova, Turkan"]
[Black "Javakhishvili, Lela"]
[Result "0-1"]
[ECO "A40"]
[WhiteElo "2264"]
[BlackElo "2465"]
[Annotator "ChessBase"]
[PlyCount "92"]
[EventDate "2021.09.30"]
[EventType "team-tourn"]
[EventCountry "ESP"]
[SourceTitle "playchess.com"]
[Source "ChessBase"]
[SourceQuality "1"]
[WhiteTeam "Azerbaijan"]
[BlackTeam "Georgia"]
[WhiteTeamCountry "AZE"]
[BlackTeamCountry "GEO"]
[TimeControl "2700+10"]

1. d4 {[%emt 0:00:13]} g6 {[%emt 0:00:05]} 2. c4 {[%emt 0:00:18]} Bg7 {[%emt 0:
00:04]} 3. Nc3 {[%emt 0:00:06]} c5 {[%emt 0:00:08]} 4. d5 {[%emt 0:01:50]} d6 {
[%emt 0:00:06]} 5. Nf3 {[%emt 0:00:38]} Bxc3+ {[%emt 0:00:19]} 6. bxc3 {
[%emt 0:00:03]} f5 {[%emt 0:00:04]} 7. Bg5 {[%emt 0:01:38]} Nd7 {[%emt 0:00:04]
} 8. Qc2 {[%emt 0:02:00]} Ngf6 {[%emt 0:00:11]} 9. Bh6 {[%emt 0:02:09]} Qa5 {
[%emt 0:00:32]} 10. Nd2 {[%emt 0:04:06]} Ne5 {[%emt 0:04:12]} 11. Bg7 {[%emt 0:
02:46]} Rg8 {[%emt 0:00:03]} 12. Bxf6 {[%emt 0:00:02]} exf6 {[%emt 0:00:02]}
13. Rb1 {[%emt 0:00:47]} b6 {[%emt 0:00:45]} 14. e3 {[%emt 0:04:53]} Bd7 {
[%emt 0:00:07]} 15. Be2 {[%emt 0:01:17]} h5 {[%emt 0:00:48]} 16. O-O {[%emt 0:
01:55]} h4 {[%emt 0:03:49]} 17. f4 {[%emt 0:00:48]} Nf7 {[%emt 0:00:37]} 18.
Nf3 {[%emt 0:00:50]} h3 {[%emt 0:03:31]} 19. g3 {[%emt 0:02:47]} O-O-O {
[%emt 0:00:04]} 20. Rfe1 {[%emt 0:00:28]} Rde8 {[%emt 0:00:40]} 21. Bd3 {
[%emt 0:00:51]} Nh6 {[%emt 0:00:35]} 22. e4 {[%emt 0:00:15]} fxe4 {[%emt 0:05:
26]} 23. Rxe4 {[%emt 0:00:49]} Rxe4 {[%emt 0:00:45]} 24. Bxe4 {[%emt 0:00:02]}
g5 {[%emt 0:01:16]} 25. fxg5 {[%emt 0:00:32]} fxg5 {[%emt 0:00:01]} 26. Rf1 {
[%emt 0:04:38]} Kc7 {[%emt 0:01:19]} 27. Nd2 {[%emt 0:01:45]} Ng4 {[%emt 0:00:
26]} 28. Rf7 {[%emt 0:00:26]} Ne5 {[%emt 0:00:24]} 29. Re7 {[%emt 0:00:14]} Kd8
{[%emt 0:04:40]} 30. Rh7 {[%emt 0:00:52]} Rf8 {[%emt 0:00:03]} 31. Nf3 {
[%emt 0:00:36]} Rxf3 {[%emt 0:05:13]} 32. Bxf3 {[%emt 0:00:09]} Nxf3+ {[%emt 0:
00:02]} 33. Kf2 {[%emt 0:00:02]} Ne5 {[%emt 0:00:03]} 34. Qd2 {[%emt 0:00:05]}
Kc7 {[%emt 0:00:11]} 35. Re7 {[%emt 0:00:37]} Qa4 {[%emt 0:00:53]} 36. Qe2 {
[%emt 0:00:36]} Kb7 {[%emt 0:02:09]} 37. Rg7 {[%emt 0:00:13]} g4 {[%emt 0:00:
22]} 38. Re7 {[%emt 0:00:12]} Ka6 {[%emt 0:00:08]} 39. Rh7 {[%emt 0:00:26]} Bf5
{[%emt 0:00:23]} 40. Rh6 {[%emt 0:00:11]} Bd3 {[%emt 0:01:19]} 41. Qd2 {
[%emt 0:00:12]} Qd7 {[%emt 0:01:13]} 42. Rf6 {[%emt 0:00:25]} Bxc4 {[%emt 0:00:
14]} 43. Qh6 {[%emt 0:00:05]} Qa4 {[%emt 0:00:16]} 44. Qd2 {[%emt 0:00:06]} Bb5
{[%emt 0:02:10]} 45. Rf4 {[%emt 0:00:52]} Nd3+ {[%emt 0:00:17]} 46. Qxd3 {
[%emt 0:00:07]} Qxa2+ {[%emt 0:00:50]} 0-1